bitfinex-derivatives/quotes_BTCF0:USTF0_20250218
["timestamp","ask_amount","ask_price","bid_price","bid_amount"]
[1739905701805,0.8808,93501.0,93500.0,0.55581275]
[1739905702003,0.2140468,93473.0,93468.0,0.02365675]
[1739905702312,0.3608,93472.0,93468.0,0.02365675]
[1739905702515,0.3608,93472.0,93469.0,0.10696]
[1739905702710,0.3608,93472.0,93468.0,0.02365675]
[1739905702914,0.2140537,93470.0,93468.0,0.02365675]
[1739905703113,0.3608,93472.0,93468.0,0.02365675]
[1739905703412,0.3608,93472.0,93471.0,0.2139]
[1739905703615,0.3608,93472.0,93471.0,0.1606734]
[1739905703814,0.00016039,93481.0,93471.0,0.2676334]
[1739905704018,0.4132394,93487.0,93480.0,0.2676334]
[1739905704316,0.6272541,93487.0,93486.0,0.1606734]
[1739905704719,0.2140247,93483.0,93475.0,0.2140417]
[1739905704906,0.2140247,93483.0,93479.0,0.1606734]
[1739905705113,0.3608,93487.0,93479.0,0.1606734]
[1739905705114,0.2140292,93481.0,93479.0,0.1606734]
[1739905705413,0.2140506,93472.0,93470.0,0.00016048]
[1739905705615,0.2140372,93478.0,93476.0,0.1606734]
[1739905705805,0.2140514,93471.0,93470.0,0.00016048]
[1739905706013,0.5748514,93471.0,93470.0,0.00016048]
[1739905706311,0.5748514,93471.0,93470.0,0.26779388]
[1739905706505,0.5748514,93471.0,93470.0,0.21456728]
[1739905706709,0.2140551,93470.0,93468.0,0.02365675]
[1739905708311,0.4340551,93470.0,93468.0,0.02365675]
[1739905709413,0.219,93469.0,93468.0,0.02365675]
[1739905709616,0.219,93469.0,93454.0,0.20383984]
[1739905709617,0.214088,93455.0,93454.0,0.20383984]
[1739905709815,0.5798,93455.0,93439.0,0.6794]
[1739905710119,0.2141109,93445.0,93444.0,0.1606734]
[1739905710417,0.2141201,93441.0,93440.0,0.05389388]
[1739905710612,0.2141155,93443.0,93442.0,0.1606734]
[1739905710815,0.4331109,93445.0,93444.0,0.1606734]
[1739905711221,0.4331109,93445.0,93444.0,0.21456728]
[1739905711419,0.48631553,93445.0,93444.0,0.21456728]
[1739905711613,0.4331109,93445.0,93444.0,0.21456728]
[1739905711819,0.219,93445.0,93439.0,0.6794]
[1739905712121,0.12152,93444.0,93439.0,0.6786]
[1739905712628,0.3356332,93444.0,93443.0,0.1074468]
[1739905712818,0.2141132,93444.0,93443.0,0.1074468]
[1739905713124,0.4341117,93445.0,93443.0,0.16134068]
[1739905713332,0.4341117,93445.0,93444.0,0.16134068]
[1739905713528,0.4331117,93445.0,93444.0,0.1074468]
[1739905713732,0.4331117,93445.0,93444.0,0.16134068]
[1739905714531,0.22,93445.0,93444.0,0.16134068]
[1739905714735,0.3608,93455.0,93447.0,0.2141043]
[1739905715037,0.2140729,93462.0,93454.0,0.16134068]
[1739905715239,0.2140729,93462.0,93455.0,0.3053]
[1739905715532,0.00016048,93464.0,93461.0,0.16134068]
[1739905715738,0.00016048,93464.0,93463.0,0.1074468]
[1739905715931,0.21422788,93464.0,93463.0,0.1074468]
[1739905716129,0.21422788,93464.0,93463.0,0.10811408]
[1739905716528,0.00016048,93464.0,93463.0,0.10811408]
[1739905717733,0.0522591,93471.0,93463.0,0.10811408]
[1739905717930,0.5145,93490.0,93470.0,0.10811408]
[1739905718131,0.5145,93490.0,93478.0,0.1074468]
[1739905718132,0.27232518,93479.0,93478.0,0.1074468]
[1739905718442,0.219,93479.0,93478.0,0.10811408]
[1739905718643,0.219,93479.0,93478.0,0.05488748]
[1739905719738,0.224,93479.0,93478.0,0.05488748]
[1739905720039,0.05404304,93487.0,93479.0,0.2140331]
[1739905720236,0.00016048,93488.0,93486.0,0.0542202]
[1739905720540,0.00016048,93488.0,93487.0,0.05488748]
[1739905721436,0.00316048,93488.0,93487.0,0.05488748]
[1739905721837,0.00316048,93488.0,93487.0,0.00166088]
[1739905722236,0.00316048,93488.0,93480.0,0.3608]
[1739905722546,0.2140147,93487.0,93480.0,0.3608]
[1739905722930,0.2140147,93487.0,93486.0,0.00166088]
[1739905724044,0.003,93487.0,93486.0,0.21567668]
[1739905724444,0.00016048,93488.0,93486.0,0.21567668]
[1739905724742,0.00016048,93488.0,93486.0,0.16245008]
[1739905725438,0.213974,93505.0,93493.0,0.2140005]
[1739905725641,0.6973,93519.0,93500.0,0.213983]
[1739905725642,0.2139661,93509.0,93500.0,0.213983]
[1739905725837,0.53146001,93519.0,93501.0,0.1613]
[1739905726035,0.5309,93519.0,93501.0,0.1613]
[1739905726239,0.2139744,93505.0,93501.0,0.1613]
[1739905726746,0.62871282,93510.0,93501.0,0.1613]
[1739905726941,0.004,93510.0,93504.0,0.3608]
[1739905727141,0.004,93510.0,93508.0,0.213965]
[1739905727345,0.00016048,93512.0,93511.0,0.2139598]
[1739905727642,0.3608,93539.0,93510.0,0.162]
[1739905727840,0.5746966,93539.0,93520.0,0.19777859]
[1739905728148,0.3608,93539.0,93529.0,0.19777859]
[1739905728347,0.3608,93539.0,93530.0,0.162]
[1739905728646,0.3608,93539.0,93536.0,0.213901]
[1739905728941,0.3344,93568.0,93534.0,0.3608]
[1739905728942,0.00016039,93544.0,93534.0,0.3608]
[1739905729145,0.05485876,93562.0,93551.0,0.2138683]
[1739905729344,0.05485876,93562.0,93553.0,0.2138638]
[1739905729345,0.28910826,93562.0,93553.0,0.2138638]
[1739905729745,0.28910826,93562.0,93552.0,0.3608]
[1739905730046,0.28910826,93562.0,93553.0,0.1651]
[1739905730245,0.28910826,93562.0,93560.0,0.2138472]
[1739905730539,0.28910826,93562.0,93553.0,0.1651]
[1739905730940,0.28910826,93562.0,93554.0,0.2138609]
[1739905731343,0.28910826,93562.0,93553.0,0.1118734]
[1739905731843,0.28910826,93562.0,93556.0,0.2138561]
[1739905732146,0.28910826,93562.0,93553.0,0.1118734]
[1739905732649,0.00016039,93566.0,93553.0,0.1118734]
[1739905732844,0.2138367,93565.0,93555.0,0.2138586]
[1739905733043,0.00016039,93566.0,93553.0,0.1118734]
[1739905733546,0.00016039,93566.0,93562.0,0.2138425]
[1739905733853,0.00016039,93566.0,93565.0,0.1606097]
[1739905734042,0.2138006,93581.0,93569.0,0.2138257]
[1739905734345,0.04483894,93581.0,93577.0,0.2138081]
[1739905734551,0.3608,93587.0,93570.0,0.55857859]
[1739905734848,0.3608,93587.0,93577.0,0.19777859]
[1739905735051,0.5745868,93587.0,93580.0,0.2138013]
[1739905735350,0.2137898,93586.0,93580.0,0.2138013]
[1739905735743,0.2138073,93578.0,93573.0,0.0001603]
[1739905736051,0.3608,93587.0,93573.0,0.0001603]
[1739905736241,0.12,93586.0,93573.0,0.0001603]
[1739905736441,0.2138141,93575.0,93573.0,0.0001603]
[1739905736950,0.3608,93577.0,93559.0,0.2138496]
[1739905737144,0.2138254,93570.0,93559.0,0.2138496]
[1739905737348,0.3608,93577.0,93558.0,0.3608]
[1739905737539,0.12008,93576.0,93566.0,0.2138325]
[1739905737736,0.3608,93577.0,93566.0,0.2138325]
[1739905738141,0.3608,93577.0,93562.0,0.0001603]
[1739905738355,0.3608,93577.0,93568.0,0.2138291]
[1739905738356,0.12004,93576.0,93568.0,0.2138291]
[1739905738537,0.3608,93577.0,93562.0,0.0001603]
[1739905738743,0.48072,93601.0,93589.0,0.2137802]
[1739905739050,0.2137706,93594.0,93585.0,0.3608]
[1739905739250,0.12004,93598.0,93589.0,0.2137811]
[1739905739449,0.3608,93601.0,93585.0,0.3608]
[1739905739645,0.12004,93598.0,93585.0,0.3608]
[1739905739849,0.2137704,93594.0,93585.0,0.3608]
[1739905740047,0.48068,93601.0,93585.0,0.3075734]
[1739905740242,0.3608,93601.0,93585.0,0.3075734]
[1739905740447,0.2137842,93588.0,93581.0,0.1657]
[1739905740947,0.2138094,93577.0,93575.0,0.3876]
[1739905741354,0.2138094,93577.0,93575.0,0.2195]
[1739905741654,0.72220001,93582.0,93570.0,0.00160302]
[1739905741843,0.3608,93582.0,93571.0,0.2138225]
[1739905742150,0.3598,93582.0,93570.0,0.19938161]
[1739905742351,0.3598,93582.0,93570.0,0.00160302]
[1739905742551,0.3608,93571.0,93570.0,0.00160302]
[1739905742944,0.3608,93571.0,93561.0,0.11423672]
[1739905743151,0.2138329,93567.0,93561.0,0.11423672]
[1739905743453,0.3608,93571.0,93561.0,0.11423672]
[1739905743646,0.2138323,93567.0,93561.0,0.11423672]
[1739905743846,0.3618,93571.0,93561.0,0.11423672]
[1739905744047,0.3618,93571.0,93564.0,0.2138364]
[1739905744245,0.2138273,93569.0,93565.0,0.2138354]
[1739905744452,0.3618,93571.0,93566.0,0.2138339]
[1739905744651,0.001,93571.0,93570.0,0.2138249]
[1739905745255,0.2138096,93577.0,93574.0,0.2138156]
[1739905745452,0.5735978,93582.0,93574.0,0.2138156]
[1739905745648,0.3598,93582.0,93570.0,0.19777859]
[1739905745849,0.3609603,93591.0,93570.0,0.42427859]
[1739905746050,0.0001603,93591.0,93590.0,0.1605526]
[1739905746255,0.3609603,93591.0,93573.0,0.2195]
[1739905746450,0.3608,93583.0,93573.0,0.2195]
[1739905746650,0.3608,93583.0,93574.0,0.005]
[1739905746850,0.2138047,93579.0,93574.0,0.2188155]
[1739905747054,0.3608,93583.0,93574.0,0.005]
[1739905747255,0.3608,93575.0,93574.0,0.005]
[1739905747759,0.3608,93575.0,93574.0,0.2188158]
[1739905747953,0.5746135,93575.0,93574.0,0.005]
[1739905748160,0.2138158,93574.0,93573.0,0.0001603]
[1739905748959,0.2088158,93574.0,93573.0,0.0001603]
[1739905749261,0.3608,93575.0,93560.0,0.14631518]
[1739905749462,0.3608,93583.0,93573.0,0.005]
[1739905749663,0.5195,93594.0,93573.0,0.005]
[1739905749854,0.3608,93594.0,93584.0,0.2137914]
[1739905750264,0.3608,93594.0,93584.0,0.2137928]
[1739905750760,0.3608,93585.0,93578.0,0.0001603]
[1739905750963,0.3608,93582.0,93578.0,0.0001603]
[1739905751262,0.2138043,93579.0,93578.0,0.0001603]
[1739905751465,0.2138158,93574.0,93573.0,0.005]
[1739905751760,0.2138158,93574.0,93532.0,0.00160361]
[1739905751761,0.2139095,93533.0,93532.0,0.00160361]
[1739905751961,0.5747095,93533.0,93532.0,0.00160361]
[1739905752266,0.2139301,93524.0,93523.0,0.26969654]
[1739905752452,0.5717301,93524.0,93523.0,0.26969654]
[1739905753057,0.5647301,93524.0,93523.0,0.26969654]
[1739905753966,0.3608,93524.0,93523.0,0.26969654]
[1739905754164,0.213915,93531.0,93523.0,0.26969654]
[1739905754371,0.2139197,93529.0,93518.0,0.2139426]
[1739905754661,0.0001603,93533.0,93521.0,0.7216]
[1739905754863,0.0001603,93533.0,93522.0,0.2994]
[1739905755166,0.0001603,93533.0,93532.0,0.1606852]
[1739905755763,0.3619603,93533.0,93522.0,0.2994]
[1739905755954,0.3619603,93533.0,93525.0,0.2139277]
[1739905756269,0.0001603,93533.0,93531.0,0.2139127]
[1739905756567,0.0011603,93533.0,93531.0,0.2139127]
[1739905756764,0.3608,93532.0,93531.0,0.2139127]
[1739905756969,0.3608,93532.0,93523.0,0.2139302]
[1739905757468,0.3619603,93533.0,93525.0,0.2139271]
[1739905757856,0.05351008,93534.0,93527.0,0.2139221]
[1739905758164,0.3608,93555.0,93529.0,0.3608]
[1739905758468,0.2138644,93553.0,93540.0,0.2138914]
[1739905758866,0.2138667,93552.0,93540.0,0.2138914]
[1739905759163,0.3608,93545.0,93540.0,0.2138914]
[1739905759557,0.213898,93538.0,93537.0,0.00016039]
[1739905760261,0.2139337,93523.0,93512.0,0.38544543]
[1739905760459,0.3608,93513.0,93512.0,0.38544543]
[1739905760968,0.0534451,93590.0,93531.0,0.4142783]
[1739905761267,0.3608,93584.0,93554.0,0.3075734]
[1739905761466,0.3608,93584.0,93564.0,0.3608]
[1739905761763,0.0001603,93578.0,93573.0,0.3608]
[1739905761962,0.0001603,93578.0,93576.0,0.2138099]
[1739905762164,0.3608,93611.0,93573.0,0.55857859]
[1739905762356,0.1599,93598.0,93596.0,0.3608]
[1739905762562,0.2137632,93597.0,93596.0,0.3608]
[1739905762765,0.3206032,93597.0,93596.0,0.3608]
[1739905763468,8e-05,93597.0,93596.0,0.3608]
[1739905764366,8e-05,93597.0,93596.0,0.3075734]
[1739905764972,0.00508,93597.0,93596.0,0.3075734]
[1739905765660,0.005,93597.0,93596.0,0.3075734]
[1739905765857,1e-08,93606.0,93605.0,0.2137449]
[1739905766066,0.053422,93630.0,93605.0,0.3608]
[1739905766266,0.2137048,93623.0,93610.0,0.19777859]
[1739905766472,0.2137245,93614.0,93610.0,0.19777859]
[1739905766664,0.2137411,93607.0,93605.0,0.3608]
[1739905766967,0.2137411,93607.0,93600.0,0.41153469]
[1739905767169,0.00608,93606.0,93605.0,0.001]
[1739905767364,0.2137491,93604.0,93596.0,0.4750071]
[1739905767774,8e-05,93603.0,93596.0,0.4750071]
[1739905768073,0.2138299,93603.0,93598.0,0.2137605]
[1739905768277,8e-05,93602.0,93598.0,0.2137605]
[1739905768775,8e-05,93601.0,93598.0,0.2137605]
[1739905769073,0.2137624,93598.0,93596.0,0.2195]
[1739905769571,0.2138424,93598.0,93596.0,0.2195]
[1739905769788,8e-05,93598.0,93596.0,0.2195]
[1739905770269,0.004,93603.0,93595.0,0.3075734]
[1739905770474,0.2137316,93611.0,93606.0,0.2137415]
[1739905771373,0.2137316,93611.0,93608.0,0.2137371]
[1739905771572,0.2137377,93609.0,93606.0,0.001]
[1739905771867,0.007,93611.0,93610.0,0.2137335]
[1739905772274,0.3608,93649.0,93610.0,0.2195]
[1739905772473,0.213691,93629.0,93621.0,0.2137084]
[1739905772771,0.1585,93639.0,93620.0,0.19777859]
[1739905772978,0.3608,93632.0,93617.0,0.3608]
[1739905773275,0.3608,93632.0,93617.0,0.3075734]
[1739905773276,0.2137068,93622.0,93617.0,0.3075734]
[1739905773473,0.2137068,93622.0,93615.0,0.21388062]
[1739905773863,8e-05,93616.0,93615.0,0.00016022]
[1739905774179,0.2087177,93617.0,93615.0,0.00016022]
[1739905774369,8e-05,93616.0,93615.0,0.00016022]
[1739905774870,8e-05,93616.0,93615.0,0.00516022]
[1739905775071,0.3608,93623.0,93615.0,0.36596022]
[1739905775375,0.3608,93640.0,93621.0,0.2137063]
[1739905775575,8e-05,93633.0,93626.0,0.3608]
[1739905775765,8e-05,93633.0,93628.0,0.2136913]
[1739905775962,8e-05,93632.0,93628.0,0.2136913]
[1739905776277,0.2137617,93633.0,93628.0,0.2136913]
[1739905776471,8e-05,93633.0,93628.0,0.1604647]
[1739905776673,0.00016022,93634.0,93628.0,0.1604647]
[1739905776674,0.2136856,93631.0,93628.0,0.1604647]
[1739905776876,8e-05,93633.0,93626.0,0.3608]
[1739905777081,0.2136927,93628.0,93626.0,0.3608]
[1739905777469,0.00016022,93634.0,93626.0,0.3608]
[1739905777670,0.2136833,93632.0,93626.0,0.3608]
[1739905777972,8e-05,93627.0,93626.0,0.002]
[1739905778180,0.2137747,93627.0,93626.0,0.002]
[1739905779373,0.2137094,93621.0,93616.0,0.1624931]
[1739905779574,0.5227,93629.0,93626.0,0.00092]
[1739905779972,0.1619,93629.0,93626.0,0.00092]
[1739905780281,0.3755905,93629.0,93627.0,0.2136942]
[1739905780886,0.00016022,93634.0,93622.0,0.3608]
[1739905780887,0.00016022,93634.0,93631.0,0.2136849]
[1739905781275,0.2136949,93627.0,93622.0,0.3608]
[1739905781476,0.00016022,93634.0,93622.0,0.574506]
[1739905781676,0.213694,93628.0,93622.0,0.3608]
[1739905781878,0.213694,93628.0,93625.0,0.2136985]
[1739905782477,0.213694,93628.0,93625.0,0.1604719]
[1739905783085,0.001,93629.0,93628.0,0.2136924]
[1739905783284,0.00016022,93634.0,93633.0,0.213681]
[1739905784375,0.00016022,93634.0,93633.0,0.433181]
[1739905784575,0.2136401,93651.0,93633.0,0.2235]
[1739905784876,0.1604,93657.0,93643.0,0.5744566]
[1739905785177,0.2136468,93649.0,93644.0,0.2136555]
[1739905785487,0.3608,93653.0,93652.0,0.2136377]
[1739905786477,0.00016022,93656.0,93655.0,0.2136308]
[1739905786679,0.00016022,93656.0,93655.0,0.5744308]
[1739905787674,0.36096022,93656.0,93645.0,0.2195]
[1739905787882,0.5744514,93646.0,93645.0,0.2195]
[1739905788586,0.5744514,93646.0,93645.0,0.1662734]
[1739905789386,0.2136514,93646.0,93645.0,0.1662734]
[1739905789585,0.1572,93655.0,93645.0,0.379927]
[1739905789779,0.1572,93655.0,93645.0,0.740727]
[1739905789980,0.2136442,93650.0,93645.0,0.742727]
[1739905790176,0.2136442,93650.0,93645.0,0.5290734]
[1739905790378,0.2136442,93650.0,93649.0,0.2136445]
[1739905790598,0.1572,93655.0,93645.0,0.5290734]
[1739905790886,0.2136479,93648.0,93645.0,0.3628]
[1739905791097,0.2136514,93646.0,93645.0,0.3628]
[1739905791500,0.2136514,93646.0,93645.0,0.3095734]
[1739905791688,0.5744514,93646.0,93645.0,0.002]
[1739905792815,0.2136386,93652.0,93645.0,0.002]
[1739905793118,0.213647,93648.0,93645.0,0.002]
[1739905793310,0.213647,93648.0,93645.0,0.001]
[1739905793815,0.7316331,93655.0,93650.0,0.2136418]
[1739905794616,0.518,93655.0,93650.0,0.1604152]
[1739905794814,0.2136381,93652.0,93650.0,0.1604152]
[1739905795009,0.2136381,93652.0,93651.0,0.21364]
[1739905795205,0.2136381,93652.0,93645.0,0.002]
[1739905795411,0.2136514,93646.0,93645.0,0.002]
[1739905796405,0.158,93651.0,93642.0,0.3608]
[1739905796602,0.158,93651.0,93645.0,0.2136536]
[1739905796807,0.2136448,93649.0,93645.0,0.2136536]
[1739905797117,0.158,93651.0,93645.0,0.2136536]
[1739905797118,0.158,93651.0,93645.0,0.2146536]
[1739905797708,0.2136514,93646.0,93645.0,0.161427]
[1739905797909,0.2136455,93649.0,93647.0,0.2136483]
[1739905798111,0.2136468,93648.0,93647.0,0.2136483]
[1739905798308,0.158,93651.0,93645.0,0.001]
[1739905798309,0.2136514,93646.0,93645.0,0.001]
[1739905799314,0.2136433,93650.0,93647.0,0.213647]
[1739905799507,0.2136468,93648.0,93647.0,0.213647]
[1739905799710,0.158,93651.0,93642.0,0.2136589]
[1739905800016,0.158,93651.0,93645.0,0.001]
[1739905800409,0.2136557,93645.0,93637.0,0.00016022]
[1739905800615,0.2136557,93645.0,93642.0,0.1604333]
[1739905800813,0.2136557,93645.0,93643.0,0.2136571]
[1739905801013,0.00016022,93656.0,93642.0,0.3628]
[1739905801214,0.00016022,93656.0,93655.0,0.2136308]
[1739905802315,0.00016022,93656.0,93652.0,0.3153]
[1739905802521,0.00016022,93656.0,93636.0,0.00160186]
[1739905802719,0.00016022,93656.0,93640.0,0.2136646]
[1739905802915,0.21365,93647.0,93637.0,0.36096022]
[1739905803117,0.00016022,93656.0,93642.0,0.002]
[1739905803314,0.2136429,93650.0,93645.0,0.2136533]
[1739905803513,0.2136429,93650.0,93646.0,0.2136511]
[1739905803823,0.00016022,93656.0,93642.0,0.002]
[1739905803824,0.00016022,93656.0,93652.0,0.2136366]
[1739905804016,0.00016022,93656.0,93655.0,0.2136308]
[1739905806426,0.22687835,93674.0,93654.0,0.1602]
[1739905806616,0.2136109,93664.0,93661.0,0.3608]
[1739905806812,0.2136109,93664.0,93661.0,0.3075734]
[1739905807213,0.22687835,93674.0,93654.0,0.1602]
[1739905807214,0.3608,93663.0,93655.0,0.004]
[1739905807420,0.2136286,93656.0,93655.0,0.004]
[1739905807724,0.1574,93662.0,93661.0,0.002]
[1739905808022,0.3710171,93662.0,93661.0,0.002]
[1739905809423,0.2136354,93653.0,93652.0,0.3608]
[1739905809620,0.2106354,93653.0,93652.0,0.3608]
[1739905809920,0.00016022,93668.0,93652.0,0.6075734]
[1739905810121,0.3228371,93700.0,93667.0,0.7216]
[1739905810342,0.3228371,93700.0,93699.0,0.5743305]
[1739905810712,0.28910826,93716.0,93707.0,0.2135123]
[1739905810713,0.02215821,93708.0,93707.0,0.2135123]
[1739905811025,0.28910826,93716.0,93707.0,0.3608]
[1739905811319,0.3608,93711.0,93702.0,0.00016013]
[1739905811520,0.3608,93711.0,93682.0,0.1662734]
[1739905811521,0.2135448,93693.0,93678.0,0.157]
[1739905811721,0.2135448,93693.0,93672.0,0.11892]
[1739905811722,0.19777859,93690.0,93672.0,0.0008]
[1739905811914,0.2135782,93679.0,93671.0,0.0373801]
[1739905812110,0.3608,93687.0,93671.0,0.0373801]
[1739905812317,0.1712,93692.0,93677.0,0.56017985]
[1739905812520,0.3608,93708.0,93686.0,0.3608]
[1739905812718,0.3608,93708.0,93685.0,0.3608]
[1739905812719,0.1712,93722.0,93707.0,0.3608]
[1739905813019,0.1712,93722.0,93714.0,0.3608]
[1739905813224,0.00016013,93721.0,93714.0,0.5742952]
[1739905813628,0.00016013,93721.0,93714.0,0.9350952]
[1739905813927,0.00016013,93721.0,93714.0,0.5742952]
[1739905814126,0.00016013,93721.0,93720.0,0.2134827]
[1739905814328,0.3799315,93743.0,93725.0,0.2134711]
[1739905814521,0.3799315,93743.0,93727.0,0.2134666]
[1739905814921,0.2134413,93739.0,93723.0,0.3608]
[1739905815221,0.1665,93743.0,93723.0,0.3608]
[1739905815521,0.00010309,93740.0,93723.0,0.3608]
[1739905815928,0.2134625,93729.0,93723.0,0.3608]
[1739905816125,0.2134667,93727.0,93723.0,0.3608]
[1739905816318,0.2134667,93727.0,93712.0,0.3608]
[1739905816319,0.1661,93728.0,93712.0,0.3608]
[1739905816624,0.2134748,93724.0,93712.0,0.3608]
[1739905816823,0.1661,93728.0,93713.0,0.2134985]
[1739905817028,0.1661,93728.0,93721.0,0.3608]
[1739905817323,0.3608,93737.0,93721.0,0.3608]
[1739905817723,0.3608,93737.0,93721.0,0.5742789]
[1739905818026,0.5269,93739.0,93721.0,0.3608]
[1739905818326,0.3608,93730.0,93712.0,0.3608]
[1739905818522,0.2134916,93717.0,93712.0,0.3608]
[1739905818925,0.2134916,93717.0,93712.0,0.3075734]
[1739905819430,0.3608,93715.0,93709.0,0.00016004]
[1739905819637,0.2135054,93710.0,93709.0,0.00016004]
[1739905819826,0.2135014,93712.0,93709.0,0.00016004]
[1739905820226,0.21364514,93719.0,93709.0,0.00016004]
[1739905820732,0.00016004,93719.0,93714.0,0.5742955]
[1739905821121,0.00016004,93719.0,93709.0,0.19793863]
[1739905821122,0.00016004,93719.0,93709.0,0.00016004]
[1739905821324,0.3608,93711.0,93703.0,0.19068042]
[1739905821523,0.2135351,93697.0,93673.0,0.1703]
[1739905821740,0.2135556,93688.0,93673.0,0.1703]
[1739905821921,0.3608,93697.0,93678.0,0.19777859]
[1739905822233,0.2135875,93674.0,93673.0,0.1703]
[1739905822734,0.00016013,93683.0,93673.0,0.1703]
[1739905822938,0.21372813,93683.0,93673.0,0.1703]
[1739905823337,0.00016013,93683.0,93678.0,0.2135776]
[1739905823833,0.2135724,93681.0,93673.0,0.1703]
[1739905824624,0.2135724,93681.0,93673.0,0.3898878]
[1739905824829,0.00016013,93683.0,93673.0,0.1763]
[1739905825129,0.213608,93665.0,93664.0,0.0008]
[1739905825332,0.2136158,93662.0,93658.0,0.00160132]
[1739905827144,0.2106158,93662.0,93658.0,0.00160132]
[1739905827337,0.2135943,93671.0,93658.0,0.00160132]
[1739905827643,0.3608,93664.0,93658.0,0.00160132]
[1739905827939,0.3608,93664.0,93655.0,0.21363]
[1739905828133,0.3608,93664.0,93658.0,0.003]
[1739905828332,0.3608,93672.0,93658.0,0.003]
[1739905828532,0.2136037,93667.0,93660.0,0.19777859]
[1739905828733,0.2136113,93664.0,93660.0,0.19777859]
[1739905828934,0.2136217,93659.0,93658.0,0.003]
[1739905829638,0.3608,93664.0,93652.0,0.1662734]
[1739905829835,0.3608,93664.0,93658.0,0.003]
[1739905830338,0.3608,93664.0,93651.0,0.00016013]
[1739905830534,0.1627,93663.0,93658.0,0.001]
[1739905830732,0.2136217,93659.0,93658.0,0.001]
[1739905830932,0.2136217,93659.0,93651.0,0.00016013]
[1739905830933,0.1627,93663.0,93651.0,0.00016013]
[1739905831141,0.1627,93663.0,93651.0,0.2136386]
[1739905831332,0.2136312,93655.0,93651.0,0.2136386]
[1739905831531,0.1627,93663.0,93650.0,0.19777859]
[1739905831833,0.1627,93663.0,93646.0,0.3608]
[1739905831834,0.2136038,93667.0,93660.0,0.2136179]
[1739905832039,0.2136061,93666.0,93660.0,0.2136179]
[1739905832240,0.2136084,93665.0,93660.0,0.2136179]
[1739905832541,0.2136131,93663.0,93655.0,0.2136298]
[1739905832739,0.3608,93663.0,93654.0,0.00016013]
[1739905832942,0.2136308,93655.0,93654.0,0.00016013]
[1739905833640,0.2116308,93655.0,93654.0,0.00016013]
[1739905834032,0.1661,93662.0,93646.0,0.16058343]
[1739905834232,0.1661,93662.0,93630.0,0.19777859]
[1739905834431,0.2136448,93649.0,93646.0,0.2136509]
[1739905834643,0.2116448,93649.0,93646.0,0.2136509]
[1739905834834,0.2136515,93646.0,93641.0,0.5433625]
[1739905835029,0.2136515,93646.0,93641.0,0.3297]
[1739905835240,0.2136515,93646.0,93644.0,0.213655]
[1739905835536,0.2136404,93651.0,93646.0,0.2136492]
[1739905835745,0.2136562,93644.0,93640.0,0.2136633]
[1739905835935,0.2136562,93644.0,93634.0,0.00016013]
[1739905836131,0.2136659,93640.0,93634.0,0.00016013]
[1739905836536,0.2136527,93646.0,93642.0,0.2136601]
[1739905836732,0.00016013,93653.0,93646.0,0.003]
[1739905836940,0.2136491,93647.0,93646.0,0.003]
[1739905837241,0.3608,93647.0,93637.0,0.004]
[1739905837440,0.11848,93646.0,93637.0,0.004]
[1739905837642,0.2136606,93642.0,93637.0,0.004]
[1739905837846,0.3608,93647.0,93640.0,0.2136639]
[1739905838442,0.3608,93647.0,93638.0,0.166]
[1739905838945,0.2136635,93641.0,93638.0,0.3796684]
[1739905839338,0.3608,93647.0,93638.0,0.166]
[1739905839637,0.00016013,93653.0,93646.0,0.3628]
[1739905839837,0.3608,93677.0,93651.0,0.3608]
[1739905840035,0.2135864,93675.0,93666.0,0.2136051]
[1739905840346,0.3608,93677.0,93660.0,0.55857859]
[1739905840640,0.2135969,93670.0,93660.0,0.5744185]
[1739905840837,0.3608,93667.0,93651.0,0.3608]
[1739905841045,0.2136152,93662.0,93656.0,0.00016013]
[1739905841242,0.3608,93667.0,93656.0,0.00016013]
[1739905841243,0.2136175,93661.0,93656.0,0.00016013]
[1739905841840,0.3608,93667.0,93656.0,0.00016013]
[1739905842044,0.3608,93667.0,93657.0,0.41140379]
[1739905842045,0.2136178,93661.0,93657.0,0.41140379]
[1739905842240,0.2136178,93661.0,93657.0,0.2136252]
[1739905842949,0.2136178,93661.0,93656.0,0.00016013]
[1739905843137,0.3608,93667.0,93650.0,0.14471212]
[1739905843333,0.5744039,93667.0,93658.0,0.2136234]
[1739905843540,0.002,93661.0,93647.0,0.1607]
[1739905843742,0.2136468,93648.0,93647.0,0.1607]
[1739905843943,0.2136359,93653.0,93647.0,0.1607]
[1739905844549,5.7e-05,93659.0,93651.0,0.3608]
[1739905845048,5.7e-05,93659.0,93653.0,0.2136353]
[1739905845245,0.360857,93659.0,93647.0,0.1647]
[1739905845440,0.2136468,93648.0,93647.0,0.1647]
[1739905846047,0.2136468,93648.0,93647.0,0.1607]
[1739905846247,0.2136468,93648.0,93647.0,0.1104734]
[1739905846449,0.2136468,93648.0,93647.0,0.003]
[1739905846843,0.2106514,93646.0,93645.0,0.00160176]
[1739905847448,0.2096514,93646.0,93645.0,0.00160176]
[1739905849254,0.2136605,93642.0,93641.0,0.88017516]
[1739905849447,0.2136605,93642.0,93641.0,0.87933516]
[1739905849752,0.5744605,93642.0,93641.0,0.87933516]
[1739905850055,0.3608,93642.0,93641.0,1.09299796]
[1739905850347,0.5744605,93642.0,93641.0,1.09299796]
[1739905850551,0.2136605,93642.0,93641.0,0.87933516]
[1739905852345,0.2136947,93627.0,93626.0,0.4771734]
[1739905852550,0.2136947,93627.0,93626.0,0.1163734]
[1739905853249,0.3608,93635.0,93617.0,0.3608]
[1739905853448,0.47928,93635.0,93626.0,0.004]
[1739905853641,0.2136947,93627.0,93626.0,0.004]
[1739905854051,0.2107221,93615.0,93609.0,0.1788]
[1739905854656,0.2107221,93615.0,93610.0,0.3608]
[1739905854850,0.2107221,93615.0,93612.0,0.2137281]
[1739905855048,0.3608,93626.0,93610.0,0.3608]
[1739905855250,0.3608,93626.0,93617.0,0.2137171]
[1739905855449,0.3608,93626.0,93613.0,0.2137255]
[1739905855653,0.2137221,93615.0,93613.0,0.2137255]
[1739905856154,0.2127221,93615.0,93611.0,0.1695]
[1739905856558,0.2127221,93615.0,93614.0,0.00360186]
[1739905856852,0.3608,93626.0,93614.0,0.00360186]
[1739905857057,0.36096013,93636.0,93623.0,0.3608]
[1739905857255,0.00016013,93636.0,93632.0,0.3608]
[1739905857953,0.213681,93633.0,93632.0,0.3608]
[1739905858453,0.00016013,93636.0,93632.0,0.30751498]